Cogmind - Beta 17 @@@ ROGUE MODE // 2026.07.07 @ 05:08:10 Player: shapeshifter Result: Destroyed by Y-72 Warden with Quantum Rifle Performance ------------- Evolutions (7) 3500 Regions Visited (19) 3800 Robots Destroyed (159) 795 Value Destroyed (8519) 8519 Prototype IDs (150) 3000 Alien Tech Used (9) 1800 Bonus (24119) 24119 TOTAL SCORE: 45533 Bonus ------- High Alert Combat Kills 155 Follower Combat Kills 1268 Prayed to X0-1V1 5000 Major X0-1V1 Interference 9400 Delivered SUBCON Basin 2000 Registered with UFD 300 Met Optimus in HQ 500 Met Data Miner 300 Met Warlord at Base 500 MAIN.C Attacked Warlord 500 Warlord Defense Kills 640 Used Core Reset Matrix 3000 Scanned by Researcher 500 Met Optimus at Protoforge 1000 Friendly Fire -944 Cogmind --------- Core Integrity 0/1350 Matter 900/900 Energy 1198/1200 System Corruption 10% Temperature Cool (9) Movement Core (50) Location -3/Protoforge Parts ------- > --- POWER (3) -------- (None) > --- PROPULSION (7) --- Experimental VSS Leg > --- UTILITY (9) ------ Experimental Melee Analysis Suite Experimental Core Analyzer Experimental Armor Integrity Analyzer A0-MCA's Component Scanner > --- WEAPON (2) ------- (None) > --- INVENTORY (5) ---- Concept Chromion Battery (800) Concept Chromion Battery (800) Experimental Kinecellerator Peak State ------------ > --- POWER ------------ Light Particle Reactor Light Particle Reactor Quantum Reactor > --- PROPULSION ------- Medium Treads Improved Heavy Siege Treads Improved Heavy Siege Treads Improved Heavy Siege Treads > --- UTILITY ---------- Huge Storage Unit Spectral Analyzer Experimental Terrain Scanner Improved Weapon Cycler Experimental Cloaking Device Advanced Powered Armor Advanced Powered Armor Ghost Barrier Amulet of Y3-NDR > --- WEAPON ----------- Nova Cannon Nova Cannon > --- INVENTORY -------- Light Particle Reactor Light Particle Reactor Improved Heavy Siege Treads Advanced Heat Sink High-capacity Storage Unit Experimental Energy Well Tactical Coordination Suite Precision Matter Filter Advanced Powered Armor Experimental Focal Shield A0-MCA's Component Scanner Tech Extrapolator Master Drone Bay X0-1V1's Piety Tracker Compact HERF Cannon Nova Cannon Nova Cannon Vortex Driver Core Cannon LU-1G1's Laser Shovel CPS Tube Sigix Broadsword [Rating: 182] Favorites ----------- Power Subdweller Power Source Engine Subdweller Power Source Power Core Fission Core Reactor Vortex Chain Reactor Propulsion Armored Wheel Treads Improved Heavy Siege Treads Leg Experimental Myomer Leg Wheel Armored Wheel Hover Unit Improved Antigrav System Flight Unit Improved Cesium-ion Thruster Utility High-capacity Storage Unit Device X0-1V1's Piety Tracker Storage High-capacity Storage Unit Processor Spectral Analyzer Hackware Ghost Barrier Protection Improved Medium Armor Plating Weapon Long-range Phase Cannon Energy Gun Subdweller Laser Energy Cannon Long-range Phase Cannon Ballistic Gun Subdweller Machine Gun Ballistic Cannon Flak Cannon Launcher Thermoblaster Special Weapon Improved Remote Datajack Impact Weapon Maul Slashing Weapon Sigix Broadsword Piercing Weapon Kinetic Spear Build | -11 -10 -10 -8 -8 -6 -6 -6 -6 -5 -5 -5 -5 -5 -4 -4 -4 -3 -3 -3 ------- Run | Yrd Mat Sub Rec Scr Fac Low Low Dat Pro Fac Upp Upp War Pro Fac Arm Res Qua Frg Slots Evolved 14 | . . . . . 8 . . . . 2 . . . . 2 . 2 . . Power 1 | . . . . . . . . . . . . . . . 1 . . . . Propulsion 4 | . . . . . 2 . . . . 1 . . . . 1 . . . . Utility 8 | . . . . . 5 . . . . 1 . . . . . . 2 . . Weapon 1 | . . . . . 1 . . . . . . . . . . . . . . Parts Attached 236 | 7 3 28 . 10 11 5 7 12 2 18 2 4 20 . 4 10 18 49 26 Power 33 | 1 1 6 . . 3 1 . 1 . 2 . . 1 . 1 2 3 6 5 Engine 9 | 1 1 6 . . 1 . . . . . . . . . . . . . . Core 6 | . . . . . 2 1 . . . 2 . . . . . . . . 1 Reactor 18 | . . . . . . . . 1 . . . . 1 . 1 2 3 6 4 Propulsion 55 | 2 . 6 . 1 . . 3 2 . 5 . . 2 . 1 4 5 18 6 Treads 9 | 2 . . . . . . . . . . . . . . . . 4 2 1 Leg 24 | . . . . . . . 1 2 . 5 . . 2 . 1 4 1 3 5 Wheel 10 | . . 6 . 1 . . 1 . . . . . . . . . . 2 . Hover 11 | . . . . . . . . . . . . . . . . . . 11 . Flight 1 | . . . . . . . 1 . . . . . . . . . . . . Utility 98 | 2 1 4 . 6 6 3 3 6 1 9 2 2 13 . 1 3 5 18 13 Device 65 | 1 1 3 . 4 6 2 3 3 . 5 1 1 11 . 1 3 2 13 5 Storage 9 | 1 . 1 . . . 1 . 1 . 1 1 . 1 . . . 1 1 . Processor 9 | . . . . 1 . . . . . 1 . . 1 . . . . 2 4 Hackware 2 | . . . . . . . . . . 1 . . . . . . 1 . . Protection 13 | . . . . 1 . . . 2 1 1 . 1 . . . . 1 2 4 Artifact . | . . . . . . . . . . . . . . . . . . . . Weapon 50 | 2 1 12 . 3 2 1 1 3 1 2 . 2 4 . 1 1 5 7 2 Energy Gun 5 | 1 . 3 . . . . . . . 1 . . . . . . . . . Energy Cannon 21 | . . 4 . 1 1 1 1 1 1 1 . . 1 . . 1 5 2 1 Ballistic Gun 8 | 1 1 5 . . . . . . . . . . . . . . . 1 . Ballistic Cannon 4 | . . . . 1 . . . . . . . 2 . . 1 . . . . Launcher 3 | . . . . . . . . . . . . . 2 . . . . 1 . Special Weapon 4 | . . . . 1 . . . 1 . . . . 1 . . . . 1 . Impact Weapon 1 | . . . . . . . . . . . . . . . . . . 1 . Slashing Weapon 3 | . . . . . 1 . . 1 . . . . . . . . . 1 . Piercing Weapon 1 | . . . . . . . . . . . . . . . . . . . 1 Special Melee Weapon . | . . . . . . . . . . . . . . . . . . . . Unidentified Prototypes 26 | . 1 1 . 2 3 . 1 2 . 1 . . 8 . 2 . . 5 . Corrupted Parts 3 | . . . . . . . . . . . . . . . . . . 3 . System Corruption 7 | . . . . . . . . . . . . . . . . . . 7 . Parts Lost 96 | . . 4 . . 1 2 2 1 . 5 1 . . . . 18 . 36 26 Power 16 | . . 2 . . . . 1 . . 1 . . . . . 3 . 6 3 Propulsion 32 | . . 2 . . . 1 1 . . 1 . . . . . 6 . 13 8 Utility 36 | . . . . . . 1 . . . 2 1 . . . . 7 . 14 11 Weapon 12 | . . . . . 1 . . 1 . 1 . . . . . 2 . 3 4 Highest Loss Streak 13 | . . 1 . . 1 2 2 1 . 2 1 . . . . 13 . 13 11 To Critical Strikes 3 | . . . . . . . . . . . . . . . . . . 2 1 Average Backups 13 | 2 7 4 3 13 14 16 16 17 18 18 18 19 18 19 19 19 18 11 4 Power . | . 1 . . . . . . . . . . . . 1 1 1 . . . Propulsion . | 1 . . . . . . . . . . . 1 . . . . 1 . . Utility 5 | . 1 1 1 4 3 5 6 8 10 10 12 12 11 11 12 12 8 4 1 Weapon 2 | . 3 2 1 3 2 3 2 1 2 1 . . 1 2 2 2 3 3 . Tool/Special . | . . . . . . . . . . . . . . . . . . . . Unused Backups 89 | . 3 29 . 17 1 3 3 . 1 2 . 2 6 1 3 . 1 11 6 Power 4 | . 1 . . 1 . . . . . . . . 1 . 1 . . . . Propulsion 10 | . 2 4 . 2 . . . . . . . . 2 . . . . . . Utility 24 | . . 4 . 5 . . 1 . 1 2 . 1 2 . . . 1 3 4 Weapon 40 | . . 21 . 7 . 3 2 . . . . . . 1 . . . 5 1 Tool/Special 11 | . . . . 2 1 . . . . . . 1 1 . 2 . . 3 1 Average Slot Usage (%) 83 | . 100 87 95 91 75 79 79 63 83 92 81 76 76 82 73 78 67 79 57 Engine 10 | . 14 20 28 28 8 6 6 6 5 . . . . . . . . . . Core 1 | . . . . . 4 6 2 . . 7 5 5 . . . . . . 1 Reactor 2 | . . . . . . . . 2 6 . . . 4 5 6 10 9 7 1 Treads 2 | . 28 1 . . . . . . . . . . . . . . 11 7 1 Leg 5 | . . . . . . . . 4 15 24 17 11 16 17 19 22 1 3 8 Wheel 7 | . . 14 14 14 13 7 7 10 1 . . . . . . . . 2 . Hover 1 | . . . . . . . 3 . . . . . . . . . . 8 2 Flight 1 | . . . . . . 6 5 . 6 . . . . . . . . . . Device 20 | . 14 15 28 13 23 23 22 20 23 29 28 30 24 29 21 20 21 20 15 Storage 9 | . 14 14 14 14 6 7 10 6 6 5 5 5 9 5 5 5 4 4 1 Processor 2 | . . . . . . 4 1 . . . . . 4 5 5 5 4 9 17 Protection 3 | . . . . 6 6 1 2 3 9 5 11 7 5 5 5 4 1 2 1 Energy Gun 1 | . 2 4 . . . . 1 4 . 1 . . . . . . . . . Energy Cannon 6 | . . 9 . 8 9 13 9 3 4 3 . . . . . 4 7 3 1 Ballistic Gun 2 | . 25 6 9 . . . . . . . . 3 3 . . . . . . Ballistic Cannon 1 | . . . . 4 1 . . . . 2 11 6 . . . . . . . Peak Build Rating 182 | 7 21 45 45 30 77 80 98 104 110 121 105 115 145 136 144 152 179 182 175 Average Rating 79 | 5 15 28 43 24 62 70 88 91 105 111 103 113 130 130 135 142 144 155 120 On Entrance 83 | . 7 21 45 26 28 77 80 94 104 108 105 105 115 130 135 142 50 178 113 Avg Prop Armor Cover (%) 6 | . . 13 . . . 2 2 5 2 1 . . . . . . 7 9 21 Naked Turns . | . . . . . . . . . . . . . . . . . . . . Heaviest Build 186 | 13 16 71 56 72 96 103 120 106 100 100 82 85 119 120 119 124 175 186 60 Greatest Support 253 | 40 40 40 12 22 22 22 48 48 78 119 86 86 100 100 123 156 253 253 132 Greatest Overweight (x) 19 | . . 19 4 5 4 8 8 3 3 1 . . 1 1 1 1 1 9 1 Average Overweight (x) 2 | . . 3 4 4 3 6 5 1 1 . . . . 1 . . . . . Largest Inventory Capacity 25 | 8 8 20 20 20 20 20 20 20 20 20 20 20 20 20 20 20 25 25 8 Average Capacity 18 | 7 8 17 20 20 20 20 20 20 20 20 20 20 20 20 20 20 21 15 5 Most Carried 25 | 5 8 20 20 20 20 20 20 20 20 20 20 20 20 20 20 20 25 25 8 Average Carried 17 | 2 7 16 19 15 19 19 19 19 19 19 19 19 19 19 19 19 19 13 4 Final Capacity 25 | 8 8 20 20 20 20 20 20 20 20 20 20 20 20 20 20 20 25 8 5 Final Carried 25 | 3 8 20 6 20 20 20 20 20 18 19 20 20 20 20 20 19 25 8 3 Scrap Suit Usage (%) 1 | . . . . . . . . 3 . . . . . . . . . . . Transmogrified Parts 53 | . . . . . . . 16 4 13 10 . 6 4 . . . . . . Integrity Recovered 1365 | . . . . . . . 673 32 209 208 . 178 65 . . . . . . Class Distribution -------------------- 77% | Mutant 16% | Scavenger-Mutant 5% | Hacker-Mutant Dominant Class ---------------- Mutant | -10/Materials Mutant | -10/Subcaves Mutant | -8/Recycling Mutant | -8/Scraptown Mutant | -6/Factory Mutant | -6/Lower Caves Mutant | -6/Lower Caves Mutant | -6/Data Miner Scavenger-Mutant | -5/Proximity Caves Mutant | -5/Factory Mutant | -5/Upper Caves Mutant | -5/Upper Caves Mutant | -5/Warlord Mutant | -4/Proximity Caves Mutant | -4/Factory Mutant | -4/Armory Hacker-Mutant | -3/Research Scavenger-Mutant | -3/Quarantine Scavenger-Mutant | -3/Protoforge Resources | -11 -10 -10 -8 -8 -6 -6 -6 -6 -5 -5 -5 -5 -5 -4 -4 -4 -3 -3 -3 ----------- Run | Yrd Mat Sub Rec Scr Fac Low Low Dat Pro Fac Upp Upp War Pro Fac Arm Res Qua Frg Matter Collected 7509 | 284 . 1033 4 556 . 795 755 243 738 367 327 368 97 . 54 144 371 1126 247 Remotely . | . . . . . . . . . . . . . . . . . . . . Salvage Created 8172 | 107 . 804 46 178 . 572 85 307 481 1151 195 314 277 265 401 381 333 1717 558 Parts 327 | 7 . 55 4 4 . 13 3 11 20 54 6 2 4 4 11 11 17 85 16 Haulers Intercepted . | . . . . . . . . . . . . . . . . . . . . Recyclers Shooed 2 | . . . . . . . . . . . . . . . 1 . . 1 . Parts Field Recycled . | . . . . . . . . . . . . . . . . . . . . Retrieved Matter . | . . . . . . . . . . . . . . . . . . . . Parts Self-Destructed 119 | . . 47 . . . 8 23 . 26 . 6 . . 9 . . . . . Prevented 4 | . . 1 . . . . 1 . . . . 2 . . . . . . . Parts Restored . | . . . . . . . . . . . . . . . . . . . . Kills | -11 -10 -10 -8 -8 -6 -6 -6 -6 -5 -5 -5 -5 -5 -4 -4 -4 -3 -3 -3 ------- Run | Yrd Mat Sub Rec Scr Fac Low Low Dat Pro Fac Upp Upp War Pro Fac Arm Res Qua Frg Combat Hostiles Destroyed 137 | . . 24 1 3 . 5 . 3 7 18 4 3 5 5 10 11 5 24 9 Melee 10 | . . 2 . . . . . . . . . . . . . . . 8 . Guns 13 | . . 6 1 . . . . . . 3 . 1 . . . . . 2 . Cannons 74 | . . 15 . 3 . 5 . 1 5 14 4 2 . . . 3 5 13 4 AOE 26 | . . . . . . . . . . . . . 5 4 6 7 . 1 3 Classes Destroyed 25 | 2 . 4 . 3 . 2 . . 2 3 . 1 2 2 . . . 3 1 Worker 2 | . . . . . . . . . . 2 . . . . . . . . . Builder 3 | . . . . . . . . . . 1 . . . . 1 . 1 . . Tunneler 2 | 2 . . . . . . . . . . . . . . . . . . . Recycler 4 | 1 . . . . . . . . . 2 . . . . . . 1 . . Mechanic 1 | . . . . . . . . . . . . . 1 . . . . . . Watcher 4 | . . . . . . . . . . 1 . . . . . . 2 1 . Swarmer 37 | . . 15 . . . 3 . . . 9 4 . . . . 3 2 1 . Grunt 38 | . . 5 . . . 1 . . 4 6 . . 4 . 4 7 . 7 . Brawler 1 | . . . . . . . . . . . . . . 1 . . . . . Duelist 1 | . . . . . . . . . . . . . . 1 . . . . . Researcher 3 | . . . . . . . . . . . . . . . . . . 2 1 Sentry 14 | . . 1 1 . . 1 . . . 1 . . . 1 4 1 1 3 . Specialist 3 | . . . . . . . . . . . . . . . . . . . 3 Hunter 1 | . . . . . . . . . . . . . . . . . . 1 . Programmer 24 | . . . . . . . . . 2 2 . 2 . 2 2 . 2 11 1 Behemoth 1 | . . . . . . . . . 1 . . . . . . . . . . Enhanced Grunt 3 | . . . . . . . . 3 . . . . . . . . . . . Hotshot 4 | . . . . . . . . . . . . . . . . . . . 4 Executioner 2 | . . . . . . . . . . . . . 1 . . . . . 1 Alpha 7 1 | . . . . . . . . . . . . . . . . . . 1 . Subdweller 5 | . . 5 . . . . . . . . . . . . . . . . . Ranger 1 | . . . . 1 . . . . . . . . . . . . . . . Guru 1 | . . . . 1 . . . . . . . . . . . . . . . Scrapper 1 | . . . . 1 . . . . . . . . . . . . . . . Scrapoid 1 | . . . . . . . . . . 1 . . . . . . . . . Decomposer 8 | . . . . . . 2 2 . 2 . 2 . . . . . . . . Packrat 6 | . . . . . . 3 . . . . 1 2 . . . . . . . Samaritan 3 | . . . . . . 1 1 . . . 1 . . . . . . . . Mutant 1 | . . . . . . . . . . . . 1 . . . . . . . Best Kill Streak 9 | 2 . 4 1 3 . 5 . 3 4 9 4 1 3 3 5 4 4 4 4 Combat Bots Only 7 | . . 4 1 3 . 5 . 3 4 7 4 1 3 3 5 4 2 4 3 Max Kills in Single Turn 2 | 1 . 1 1 1 . 1 1 1 1 2 1 1 1 2 2 1 1 1 2 Gunslinging . | . . . . . . . . . . . . . . . . . . . . Exploded 2 | . . . . . . . . . . . . . 1 2 2 1 . 1 1 Melee 1 | . . 1 . . . . . . . . . . . . . . . 1 . Uniques/NPCs Destroyed . | . . . . . . . . . . . . . . . . . . . . Combat | -11 -10 -10 -8 -8 -6 -6 -6 -6 -5 -5 -5 -5 -5 -4 -4 -4 -3 -3 -3 -------- Run | Yrd Mat Sub Rec Scr Fac Low Low Dat Pro Fac Upp Upp War Pro Fac Arm Res Qua Frg Hostile Shots Fired 1959 | . 6 167 2 2 . 80 18 26 39 124 5 18 65 16 76 386 57 581 291 Missed 593 | . 2 56 . 2 . 26 3 11 10 40 2 7 23 2 19 116 15 144 115 Intercepted 3 | . . . . . . . . . . . . . . . . . . . 3 Hits 1366 | . 4 111 2 . . 54 15 15 29 84 3 11 42 14 57 270 42 437 176 Melee 15 | . . . . . . . . . . . . . 1 3 . . . 7 4 Projectile 1351 | . 4 111 2 . . 54 15 15 29 84 3 11 41 11 57 270 42 430 172 AOE 5 | . . . . . . . . . . . . . . . . . . . 5 Critical Strikes 85 | . . . . . . . . . 1 2 . 1 3 1 2 10 3 39 23 Part Disruptions 10 | . . . . . . . . . . 1 . . . . . . 2 7 . Damage Taken 27204 | . 101 1427 31 . . 762 248 688 701 1635 48 140 659 373 672 4272 760 7942 6745 Core 3611 | . 26 408 31 . . 145 . 195 99 41 . . 67 . 20 443 24 446 1666 Absorbed by Shields 4218 | . . . . . . . . . . . . . 394 . 698 1312 307 1507 . Reduced by Siege Mode 16 | . . . . . . . . . . . . . . . . . . 16 . Redirected to Shielding 162 | . . . . . . . . . . . 13 . . . . . . . 149 Ignored by Resistances 228 | . . 22 . . . . . . . 74 . . . . . . . 132 . Regen/Repaired (Parts) 1330 | . . . . . . . . . . . . 119 64 225 195 95 . 632 . Core Remaining (%) 81 | 100 . . . 90 . . . . 67 . . . . 89 . 61 . . . Volleys Fired 737 | 6 6 229 2 17 9 25 6 17 38 66 12 11 20 8 47 53 33 114 18 Largest 2 | 2 2 2 1 1 2 2 2 1 1 2 2 2 2 2 1 1 2 2 1 Hottest 520 | 70 70 140 30 90 195 195 195 70 40 165 95 90 520 520 260 260 226 226 100 Shots Fired 976 | 12 12 308 2 18 10 50 13 17 39 88 25 22 23 11 48 54 47 159 18 Gun 252 | 12 12 160 2 . . . . 5 . 15 . 11 . . . . . 35 . Cannon 617 | . . 148 . 18 10 50 13 9 39 73 25 11 . . . 32 47 124 18 Launcher 95 | . . . . . . . . . . . . . 19 11 46 19 . . . Special 12 | . . . . . . . . 3 . . . . 4 . 2 3 . . . Kinetic 196 | 6 8 80 2 . . . . . . 18 25 22 . . . . . 35 . Thermal 695 | 6 4 228 . 18 10 50 13 9 39 53 . . 19 11 46 36 29 106 18 Explosive . | . . . . . . . . . . . . . . . . . . . . Electromagnetic 30 | . . . . . . . . 5 . 17 . . . . . . . 8 . Entropic 43 | . . . . . . . . . . . . . . . . 15 18 10 . Robot Hit Streak 17 | 2 2 13 3 3 . 7 7 11 6 10 11 11 7 7 17 6 6 12 10 Robot Miss Streak 13 | 2 2 5 . 2 . 4 2 2 2 5 3 1 2 1 3 12 13 4 2 Penetration Max 1 | . . . . . . . . . . . . 1 . . . 1 1 . . Secondary Targets . | . . . . . . . . . . . . . . . . . . . . Shots Hit Robots 511 | 6 5 103 2 4 . 27 8 15 21 44 16 16 10 9 29 23 20 127 26 Core Hits 266 | 4 1 35 2 3 . 9 3 8 6 37 19 7 11 7 22 15 8 43 26 Critical Kills 14 | . . 1 . . . 1 . 2 2 . . 1 . . . 1 1 3 2 Critical Parts Destroyed 13 | . . . . . . . . . . . . 1 . . . . . 12 . Critical Strikes 52 | 1 . 1 . . . 1 . 2 2 2 1 3 . . . 6 6 19 8 Burn 1 | 1 . . . . . . . . . . . . . . . . . . . Meltdown 9 | . . . . . . 1 . 2 2 . . . . . . 1 1 . 2 Destroy 17 | . . . . . . . . . . . . 2 . . . . . 15 . Blast 4 | . . . . . . . . . . 2 1 1 . . . . . . . Smash 1 | . . 1 . . . . . . . . . . . . . . . . . Sever 1 | . . . . . . . . . . . . . . . . . . 1 . Impale 6 | . . . . . . . . . . . . . . . . . . . 6 Sunder 13 | . . . . . . . . . . . . . . . . 5 5 3 . Melee Attacks 67 | . . 11 . . . . . 1 1 . . . . . . . . 41 13 Kinetic 1 | . . . . . . . . . . . . . . . . . . 1 . Impact 11 | . . 11 . . . . . . . . . . . . . . . . . Slashing 41 | . . . . . . . . 1 . . . . . . . . . 40 . Piercing 14 | . . . . . . . . . 1 . . . . . . . . . 13 Sneak Attacks 1 | . . . . . . . . 1 . . . . . . . . . . . Combat Hostiles . | . . . . . . . . . . . . . . . . . . . . Follow-up Attacks . | . . . . . . . . . . . . . . . . . . . . Damage Inflicted 27839 | 80 67 2467 32 131 . 946 251 354 1108 2303 435 602 1411 815 2830 2165 1422 6428 3992 Guns 2048 | 80 60 1113 32 . . . . 31 . 210 . 270 . . . . . 252 . Cannons 13385 | . . 1022 . 131 . 946 251 248 1076 1473 435 332 . . . 1064 1422 3584 1401 Explosions 9316 | . . . . . . . . . . 580 . . 1411 815 2830 1068 . 648 1964 Melee 3003 | . . 332 . . . . . 75 32 . . . . . . . . 1937 627 Ramming 87 | . 7 . . . . . . . . 40 . . . . . 33 . 7 . Kinetic 2530 | 43 35 842 32 . . . . . . 228 435 602 . . . . . 313 . Thermal 18061 | 37 25 1293 . 131 . 946 251 248 1076 1152 . . 1411 815 2767 1286 398 2860 3365 Explosive 1291 | . . . . . . . . . . 580 . . . . 63 . . 648 . Electromagnetic 478 | . . . . . . . . 31 . 303 . . . . . . . 144 . Impact 332 | . . 332 . . . . . . . . . . . . . . . . . Slashing 1951 | . . . . . . . . 75 . . . . . . . . . 1876 . Piercing 659 | . . . . . . . . . 32 . . . . . . . . . 627 Entropic 2450 | . . . . . . . . . . . . . . . . 846 1024 580 . Highest Corruption 58 | . . 31 31 . . . 16 . 5 3 3 5 5 . 3 11 3 58 10 Average Corruption 13 | . . 20 31 . . . 16 . 4 2 3 4 5 . 2 4 2 30 3 Corruption Purged . | . . . . . . . . . . . . . . . . . . . . Corruption Blocked . | . . . . . . . . . . . . . . . . . . . . Effects 210 | . . 28 17 . . . 1 . 19 9 12 13 1 . 1 10 5 86 8 Message Errors 55 | . . 9 4 . . . . . 5 . 3 5 . . . 4 1 22 2 Matter Fused 48 | . . 2 4 . . . . . 6 6 3 3 1 . . 1 2 18 2 Heat Flow Errors 30 | . . 4 2 . . . . . 5 1 3 3 . . . 1 1 8 2 Energy Discharges 12 | . . 2 3 . . . . . 1 . . . . . . 2 . 4 . Parts Rejected 4 | . . . . . . . . . . 2 . . . . . . . 2 . Parts Fused 3 | . . . 2 . . . . . . . . . . . . . . 1 . Data Loss (minor) 24 | . . 4 2 . . . . . . . . 1 . . . 1 1 13 2 Data Loss (major) 8 | . . . . . . . 1 . . . 3 . . . . . . 4 . Misfires 7 | . . 4 . . . . . . 1 . . . . . 1 1 . . . Alerts 4 | . . 1 . . . . . . 1 . . 1 . . . . . 1 . Misdirections 9 | . . . . . . . . . . . . . . . . . . 9 . Weapon Failures 6 | . . 2 . . . . . . . . . . . . . . . 4 . Overload Shots . | . . . . . . . . . . . . . . . . . . . . Overflow Damage 1835 | . . 46 . . . 158 64 15 103 24 59 73 6 72 95 189 206 506 219 Projectiles 1072 | . . 17 . . . 158 64 . 103 23 59 73 . . . 76 206 213 80 Explosions 478 | . . . . . . . . . . 1 . . 6 72 95 113 . 52 139 Melee 285 | . . 29 . . . . . 15 . . . . . . . . . 241 . Knockbacks 13 | . . 1 . . . . . . . 5 5 2 . . . . . . . Impact 1 | . . 1 . . . . . . . . . . . . . . . . . Kinetic 11 | . . . . . . . . . . 4 5 2 . . . . . . . Secondary 1 | . . . . . . . . . . 1 . . . . . . . . . Self-Inflicted Damage 251 | . . . . . . . . . . 74 . . . . 21 . . 156 . Shots 5 | . . . . . . . . . . 2 . . . . 1 . . 2 . Rammed 4 | . 3 . . . . . . . . . . . . . . . . 1 . Targets Rammed 10 | . 3 . . . . . . . . 2 . . . . . 4 . 1 . Kicked 6 | . . . . . . . . . . 2 . . . . . 4 . . . Crushed . | . . . . . . . . . . . . . . . . . . . . Highest Temperature 601 | 27 18 225 155 132 192 198 164 . 206 378 204 175 601 319 452 495 495 417 188 Average Temperature 126 | 11 6 60 66 54 76 112 72 . 59 97 98 76 214 159 168 216 137 111 134 Received Heat Transfer 3429 | . 27 348 9 . . 57 . . 186 181 . . 162 . 108 727 408 616 600 Effects 69 | . . . . . . . . . . 7 . . 11 1 7 26 11 6 . Shutdowns 25 | . . . . . . . . . . 1 . . 1 . 4 15 . 4 . Energy Bleed 10 | . . . . . . . . . . 2 . . 1 . 1 3 2 1 . Interference 28 | . . . . . . . . . . 3 . . 7 . 2 6 9 1 . Short Circuit 3 | . . . . . . . . . . 1 . . 1 . . 1 . . . Damage (minor) 3 | . . . . . . . . . . . . . 1 1 . 1 . . . Siege Activations 2 | . . . . . . . . . . . . . . . . . . 1 1 Total Turns 8 | . . . . . . . . . . . . . . . . . . 5 3 Longest Duration 5 | . . . . . . . . . . . . . . . . . . 5 3 Martial Activations . | . . . . . . . . . . . . . . . . . . . . Shielding Activations . | . . . . . . . . . . . . . . . . . . . . Robots Disrupted . | . . . . . . . . . . . . . . . . . . . . Combat Hostiles . | . . . . . . . . . . . . . . . . . . . . Robots Corrupted 2 | . . 1 . . . . . . . 1 . . . . . . . . . Combat Hostiles 2 | . . 1 . . . . . . . 1 . . . . . . . . . Parts Fried 3 | . . 1 . . . . . . . 2 . . . . . . . . . Impact Corruptions 2 | . . 2 . . . . . . . . . . . . . . . . . Robots Melted 15 | . . . . . . 1 . 2 2 . . . . 1 4 1 1 1 2 Combat Hostiles 12 | . . . . . . . . 2 2 . . . . 1 4 1 . . 2 Parts Melted 21 | . . 2 . . . . 1 7 1 1 . . 1 1 . . 2 . 5 Heat Transferred 18599 | 185 74 1842 . 174 . 1257 259 . . 333 . . 2089 960 4160 1502 370 2590 2804 Parts Sabotaged . | . . . . . . . . . . . . . . . . . . . . Parts Stolen . | . . . . . . . . . . . . . . . . . . . . Parts Stripped . | . . . . . . . . . . . . . . . . . . . . Power Chain Reactions . | . . . . . . . . . . . . . . . . . . . . Alert | -11 -10 -10 -8 -8 -6 -6 -6 -6 -5 -5 -5 -5 -5 -4 -4 -4 -3 -3 -3 ------- Run | Yrd Mat Sub Rec Scr Fac Low Low Dat Pro Fac Upp Upp War Pro Fac Arm Res Qua Frg Maximum Alert Level 3 | . . . . . . . . . . 3 . . . . 1 1 . 1 1 Low Security (%) 88 | 100 100 . 100 . 100 . . . . 41 . . . . 94 73 100 99 97 Level 1 3 | . . . . . . . . . . 7 . . . . 5 26 . . 2 Level 2 6 | . . . . . . . . . . 42 . . . . . . . . . Level 3 1 | . . . . . . . . . . 8 . . . . . . . . . Level 4 . | . . . . . . . . . . . . . . . . . . . . Level 5 . | . . . . . . . . . . . . . . . . . . . . High Security . | . . . . . . . . . . . . . . . . . . . . Max Security . | . . . . . . . . . . . . . . . . . . . . Sterilizations 1 | . . . . . . . . . . . . . . . . . . 1 . Peak Influence 760 | 5 . . 108 . 6 . . . . 760 . . . . 254 312 174 201 210 Initial 123 | . . . 88 . . . . . . 20 . . . . . 123 83 93 71 Average 112 | 1 . . 42 . . . . . . 357 . . . . 35 174 64 88 78 Influence Increases 5940 | 15 . 797 50 . 22 105 362 . 228 1226 90 50 105 120 435 442 409 1109 375 Destroy 0b10 Robot/C 3400 | . . 680 20 . . 100 200 . 160 580 80 40 100 100 200 220 160 560 200 Destroy 0b10 Robot/NC 110 | 15 . . . . . 5 . . . 40 . . 5 . 5 . 30 10 . Destroy Leader 384 | . . . . . . . 20 . 40 84 10 10 . 20 50 30 46 64 10 Allied During Kill 366 | . . 42 . . . . 127 . 28 114 . . . . . . 40 15 . Successful Hack 93 | . . . . . 13 . . . . 14 . . . . 6 . . 60 . Select Force Hacks 30 | . . . 30 . . . . . . . . . . . . . . . . Disable Machine 435 | . . . . . . . . . . 150 . . . . 30 60 15 150 30 Destroy Structure 717 | . . . . . 9 . . . . 184 . . . . 144 72 88 130 90 Partial Spotted 15 | . . . . . . . . . . 15 . . . . . . . . . Lose Combat Pursuer 390 | . . 75 . . . . 15 . . 45 . . . . . 60 30 120 45 Influence Decreases 5901 | 15 . 613 234 . 22 105 362 . 195 545 497 357 52 173 181 537 402 1148 463 Entered New Map 822 | . . . 96 . . . . . . 13 265 59 . 53 . 131 76 73 56 Time Decay 3715 | 15 . 483 138 . 22 85 342 . 195 398 222 298 52 120 161 206 226 573 179 Lost Part 878 | . . 30 . . . 20 20 . . 50 10 . . . . 180 . 340 228 Lost Ally 486 | . . 100 . . . . . . . 84 . . . . 20 20 100 162 . Squads Dispatched 40 | . 1 . . . . . . . . 10 . . . . 2 3 5 15 4 Investigation 10 | . . . . . . . . . . 4 . . . . 1 . 1 1 3 Extermination 8 | . . . . . . . . . . 1 . . . . 1 1 2 3 . Reinforcement 12 | . 1 . . . . . . . . 4 . . . . . 2 2 2 1 Assault 1 | . . . . . . . . . . 1 . . . . . . . . . Garrison 9 | . . . . . . . . . . . . . . . . . . 9 . Intercept . | . . . . . . . . . . . . . . . . . . . . Searches Triggered . | . . . . . . . . . . . . . . . . . . . . Construction Impeded 2 | . . . . . . . . . . 1 . . . . . . . 1 . Haulers Reinforced 3 | . . . . . . . . . . 2 . . . . . . 1 . . Active Scanning Responses . | . . . . . . . . . . . . . . . . . . . . Cargo Convoy Interrupts 1 | . . . . . . . . . . 1 . . . . . . . . . Stealth | -11 -10 -10 -8 -8 -6 -6 -6 -6 -5 -5 -5 -5 -5 -4 -4 -4 -3 -3 -3 --------- Run | Yrd Mat Sub Rec Scr Fac Low Low Dat Pro Fac Upp Upp War Pro Fac Arm Res Qua Frg Distress Signals 13 | . . . . . . . . . . . . . . . . 2 1 6 4 Communications Jammed 16 | . . . . . . . . . . 16 . . . . . . . . . Distress Signals 3 | . . . . . . . . . . 3 . . . . . . . . . Times Spotted 382 | . 7 49 1 7 3 5 7 4 8 38 3 3 35 3 12 42 14 65 76 Peak Tracking Total 19 | . 3 5 1 2 2 5 4 4 4 5 1 1 10 1 6 18 3 9 19 Tactical Retreats 23 | . . 4 . . . . 1 . . 2 . . . . . 2 2 9 3 ECM-based Alert Blocks 11 | . . . . . . . . . . . . . . . . . . 11 . Traps | -11 -10 -10 -8 -8 -6 -6 -6 -6 -5 -5 -5 -5 -5 -4 -4 -4 -3 -3 -3 ------- Run | Yrd Mat Sub Rec Scr Fac Low Low Dat Pro Fac Upp Upp War Pro Fac Arm Res Qua Frg Traps Triggered 8 | . . 2 . . . . . . . . . . . . . . 2 4 . Indirectly . | . . . . . . . . . . . . . . . . . . . . Trap Hack Attempts . | . . . . . . . . . . . . . . . . . . . . Triggered . | . . . . . . . . . . . . . . . . . . . . Disarmed . | . . . . . . . . . . . . . . . . . . . . Reprogrammed . | . . . . . . . . . . . . . . . . . . . . Reused . | . . . . . . . . . . . . . . . . . . . . Traps Extracted . | . . . . . . . . . . . . . . . . . . . . Installed . | . . . . . . . . . . . . . . . . . . . . Triggered . | . . . . . . . . . . . . . . . . . . . . Most Traps Carried 3 | . . 3 . . . . . . . . . . . . . . . . . Machines | -11 -10 -10 -8 -8 -6 -6 -6 -6 -5 -5 -5 -5 -5 -4 -4 -4 -3 -3 -3 ---------- Run | Yrd Mat Sub Rec Scr Fac Low Low Dat Pro Fac Upp Upp War Pro Fac Arm Res Qua Frg Machines Disabled 42 | . . 4 . 4 . . . 1 . 10 . . . . 3 4 2 11 3 Max in Single Turn 3 | . . 1 . 1 . . . . . 3 . . . . 1 1 1 1 2 Garrison Access 2 | . . . . . 1 . . . . 1 . . . . . . . . . Machines Repaired . | . . . . . . . . . . . . . . . . . . . . Machines Dismantled . | . . . . . . . . . . . . . . . . . . . . Machines Sabotaged . | . . . . . . . . . . . . . . . . . . . . Overloaded Fab Kills . | . . . . . . . . . . . . . . . . . . . . Hacking | -11 -10 -10 -8 -8 -6 -6 -6 -6 -5 -5 -5 -5 -5 -4 -4 -4 -3 -3 -3 --------- Run | Yrd Mat Sub Rec Scr Fac Low Low Dat Pro Fac Upp Upp War Pro Fac Arm Res Qua Frg Machines Accessed 50 | . . 2 3 2 5 1 2 3 . 7 . 1 4 . 4 1 1 11 3 Terminals 19 | . . . . . 3 . . . . 3 . . . . 4 . . 9 . Fabricators 1 | . . . . . . . . . . . . . . . . 1 . . . Repair Stations . | . . . . . . . . . . . . . . . . . . . . Recycling Units 10 | . . . 3 . . . . . . 3 . . . . . . 1 . 3 Scanalyzers 2 | . . . . . . . . . . . . . . . . . . 2 . Garrison Access 3 | . . . . . 2 . . . . 1 . . . . . . . . . Total Hacks 112 | . . 2 10 6 9 1 5 22 . 13 . 1 7 . 6 1 3 21 5 Successful 67 | . . 2 3 6 3 1 5 22 . 5 . 1 7 . 2 1 1 6 2 Failed 45 | . . . 7 . 6 . . . . 8 . . . . 4 . 2 15 3 Catastrophic 18 | . . . 2 . 3 . . . . . . . . . 1 . 2 7 3 Database Lockouts . | . . . . . . . . . . . . . . . . . . . . Manual 22 | . 1 . 2 . 3 . . . . 5 . . 1 . 3 . 2 . 5 Terminals 37 | . . . . . 6 . . . . 7 . . . . 6 . 1 17 . Fabricators 1 | . . . . . . . . . . . . . . . . 1 . . . Repair Stations . | . . . . . . . . . . . . . . . . . . . . Recycling Units 22 | . . . 10 . . . . . . 5 . . . . . . 2 . 5 Scanalyzers 4 | . . . . . . . . . . . . . . . . . . 4 . Garrison Access 4 | . . . . . 3 . . . . 1 . . . . . . . . . Terminal Hacks 53 | . . 2 . 6 2 1 5 22 . 1 . 1 7 . 1 . . 5 . Record 21 | . . . . 5 . . 4 6 . . . . 6 . . . . . . Part Schematic 9 | . . . . . . . . 9 . . . . . . . . . . . Robot Schematic 4 | . . . . . . . . 4 . . . . . . . . . . . Prototype ID Bank 5 | . . . . . . . . 3 . . . . . . . . . 2 . Open Door 4 | . . . . . . 1 1 . . . . 1 1 . . . . . . Branch Access Points 2 | . . . . . 1 . . . . 1 . . . . . . . . . Emergency Access Points 1 | . . . . . . . . . . . . . . . . . . 1 . Terminal Index 1 | . . . . . . . . . . . . . . . 1 . . . . Reinforcement Status 1 | . . . . . . . . . . . . . . . . . . 1 . Recall Reinforcements 1 | . . . . . . . . . . . . . . . . . . 1 . Zone Layout 1 | . . . . . 1 . . . . . . . . . . . . . . Proto ID Catalog 2 | . . 1 . 1 . . . . . . . . . . . . . . . Release Object 1 | . . 1 . . . . . . . . . . . . . . . . . Fabricator Hacks 1 | . . . . . . . . . . . . . . . . 1 . . . Network Status 1 | . . . . . . . . . . . . . . . . 1 . . . Repair Station Hacks . | . . . . . . . . . . . . . . . . . . . . Recycling Unit Hacks 2 | . . . 2 . . . . . . . . . . . . . . . . Retrieve Components 2 | . . . 2 . . . . . . . . . . . . . . . . Scanalyzer 1 | . . . . . . . . . . . . . . . . . . 1 . Retrieve Study 1 | . . . . . . . . . . . . . . . . . . 1 . Garrison Access Hacks 2 | . . . . . 1 . . . . 1 . . . . . . . . . Seal Access 2 | . . . . . 1 . . . . 1 . . . . . . . . . Unauthorized Hacks 8 | . . . 1 . . . . . . 3 . . . . 1 . 1 . 2 Terminals 1 | . . . . . . . . . . . . . . . 1 . . . . Operators 1 | . . . . . . . . . . . . . . . 1 . . . . Fabricators . | . . . . . . . . . . . . . . . . . . . . Repair Stations . | . . . . . . . . . . . . . . . . . . . . Recycling Units 7 | . . . 1 . . . . . . 3 . . . . . . 1 . 2 Tunnel 1 | . . . 1 . . . . . . . . . . . . . . . . Fedlink 6 | . . . . . . . . . . 3 . . . . . . 1 . 2 Scanalyzers . | . . . . . . . . . . . . . . . . . . . . Garrison Access . | . . . . . . . . . . . . . . . . . . . . Data Cores Recovered . | . . . . . . . . . . . . . . . . . . . . Used . | . . . . . . . . . . . . . . . . . . . . Hacking Detections 26 | . . . 2 . 5 . . . . 3 . . . . 4 . . 10 2 Full Trace Events 4 | . . . 2 . . . . . . 1 . . . . . . . . 1 Feedback Events 2 | . . . . . . . . . . 1 . . . . . . . . 1 Corruption 2 | . . . . . . . . . . 1 . . . . . . . . 1 Feedback Blocked . | . . . . . . . . . . . . . . . . . . . . Robot Schematics Acquired 4 | . . . . . . . . 4 . . . . . . . . . . . Robots Built . | . . . . . . . . . . . . . . . . . . . . Authchips . | . . . . . . . . . . . . . . . . . . . . Time . | . . . . . . . . . . . . . . . . . . . . Total Robot Build Rating . | . . . . . . . . . . . . . . . . . . . . Part Schematics Acquired 18 | . . . . . . . . 9 . . . . . . . . . 7 2 Parts Built . | . . . . . . . . . . . . . . . . . . . . Authchips . | . . . . . . . . . . . . . . . . . . . . Time . | . . . . . . . . . . . . . . . . . . . . Total Part Build Rating . | . . . . . . . . . . . . . . . . . . . . Part Studies Acquired 1 | . . . . . . . . . . . . . . . . . . 1 . Parts Repaired . | . . . . . . . . . . . . . . . . . . . . Time . | . . . . . . . . . . . . . . . . . . . . Parts Recycled . | . . . . . . . . . . . . . . . . . . . . Recycled Matter . | . . . . . . . . . . . . . . . . . . . . Retrieved Matter . | . . . . . . . . . . . . . . . . . . . . Retrieved Components 3 | . . . 3 . . . . . . . . . . . . . . . . Parts Scanalyzed . | . . . . . . . . . . . . . . . . . . . . Part Schematics Acquired . | . . . . . . . . . . . . . . . . . . . . Parts Damaged . | . . . . . . . . . . . . . . . . . . . . Bothacking | -11 -10 -10 -8 -8 -6 -6 -6 -6 -5 -5 -5 -5 -5 -4 -4 -4 -3 -3 -3 ------------ Run | Yrd Mat Sub Rec Scr Fac Low Low Dat Pro Fac Upp Upp War Pro Fac Arm Res Qua Frg Used RIF Installer . | . . . . . . . . . . . . . . . . . . . . Robots Hacked 8 | . . . . . . . . 2 . . . . 2 . 2 2 . . . Non-combat . | . . . . . . . . . . . . . . . . . . . . Combat 4 | . . . . . . . . 2 . . . . 2 . . . . . . Robot Hacks Applied 4 | . . . . . . . . 2 . . . . 2 . . . . . . parse_system 4 | . . . . . . . . 2 . . . . 2 . . . . . . Manual 4 | . . . . . . . . . . . . . . . 2 2 . . . Relay Couplers Released . | . . . . . . . . . . . . . . . . . . . . Fabnet Peak Effective % . | . . . . . . . . . . . . . . . . . . . . Robots Rewired . | . . . . . . . . . . . . . . . . . . . . Allies Hacked 3 | . . . . . . . . . 2 . . . . . . . . 1 . Hacks Repelled 2 | . . . . . . . . . . . . . . . . . . 2 . Allies | -11 -10 -10 -8 -8 -6 -6 -6 -6 -5 -5 -5 -5 -5 -4 -4 -4 -3 -3 -3 -------- Run | Yrd Mat Sub Rec Scr Fac Low Low Dat Pro Fac Upp Upp War Pro Fac Arm Res Qua Frg Total Allies 50 | . . 15 . . . 5 2 . 5 4 . . . . 2 2 6 9 . Largest Group 7 | . . 5 . . . 5 7 6 6 5 . . . . 2 2 4 1 . Highest-Rated Group 324 | . . 77 . . . 235 275 228 284 231 . . . . 43 36 324 82 . Highest-Rated Ally 82 | . . 20 . . . 47 47 47 50 47 . . . . 33 26 81 82 . Initial UFD Resources 59 | . . . . . 23 23 23 23 27 27 43 43 43 47 47 47 49 59 59 Total Orders . | . . . . . . . . . . . . . . . . . . . . Ally Attacks 375 | . . 66 . . . . 53 30 29 90 . . . . . . 53 54 . Total Damage 6622 | . . 850 . . . . 983 361 541 1704 . . . . . . 831 1352 . Kills 52 | . . 15 . . . . 11 1 2 15 . . . . . . 5 3 . Allies Corrupted 1 | . . . . . . . . . . 1 . . . . . . . . . Allies Melted 10 | . . . . 7 . . . . . . . . . . . . 1 . 2 X0-1V1 Amusement Gains 468 | . 8 20 10 50 . . 14 83 13 20 10 6 65 . . 20 . 89 60 Good Acts 164 | . . 76 2 . 2 8 9 . 5 7 1 7 3 3 2 2 6 22 9 Bad Acts 119 | . . 79 . 2 . 2 5 . 4 1 2 2 . 1 8 4 . 9 . Intel | -11 -10 -10 -8 -8 -6 -6 -6 -6 -5 -5 -5 -5 -5 -4 -4 -4 -3 -3 -3 ------- Run | Yrd Mat Sub Rec Scr Fac Low Low Dat Pro Fac Upp Upp War Pro Fac Arm Res Qua Frg Active Infowar (turns) 12152 | 19 279 398 . 1179 222 1026 1260 . 43 976 473 716 1191 501 537 379 620 1913 420 Optics 5342 | . . . . . . . . . . . . . 1004 501 517 379 608 1913 420 IFF 1863 | . . . . . . . . . . 802 473 588 . . . . . . . Terrain 2652 | . . . . . . . . . . . . 649 885 . . . 576 542 . Traps 1165 | . . . . 1165 . . . . . . . . . . . . . . . Seismic 696 | 19 279 398 . . . . . . . . . . . . . . . . . Cloaking 6443 | . . . . . 222 1026 1260 . . . . . 599 501 537 344 564 1118 272 Jamming 1893 | . . . . 14 . . . . 43 976 473 387 . . . . . . . ECM 85 | . . . . . . . . . . . . . . . . . . 85 . Robot Analysis Total . | . . . . . . . . . . . . . . . . . . . . Derelict Logs Recovered 14 | . . 2 . 4 . . 2 . 2 . 1 2 . 1 . . . . . Drone Launches 6 | . . . . . . . . . . . . . . . . . . 6 . Drone Recoveries 5 | . . . . . . . . . . . . . . . . . . 5 . Exploration | -11 -10 -10 -8 -8 -6 -6 -6 -6 -5 -5 -5 -5 -5 -4 -4 -4 -3 -3 -3 ------------- Run | Yrd Mat Sub Rec Scr Fac Low Low Dat Pro Fac Upp Upp War Pro Fac Arm Res Qua Frg Turns Passed 21408 | 116 602 3972 392 3359 342 1026 2344 285 980 1048 473 716 1203 501 537 436 620 1913 543 Spaces Moved 11818 | 62 111 2127 252 1912 223 481 808 167 503 617 344 464 812 242 295 204 300 1369 525 Core 188 | 18 . 15 . . . . . . . . . . . . . . . . 155 Treads 715 | 44 111 74 . . . . . . . . . . . . . . 211 264 11 Legs 3683 | . . . . . . . . . 376 617 344 464 812 242 295 204 89 . 240 Wheels 6373 | . . 2038 252 1912 223 481 808 167 127 . . . . . . . . 365 . Hover 859 | . . . . . . . . . . . . . . . . . . 740 119 Flight . | . . . . . . . . . . . . . . . . . . . . Fastest Speed 36 | 50 160 110 150 130 130 145 97 97 145 114 126 125 106 196 110 110 115 36 50 Average Speed 141 | 128 160 153 150 162 134 184 169 120 178 133 126 125 117 196 128 117 161 96 72 Slowest Speed 1000 | 160 160 1000 150 165 145 210 210 145 190 220 126 126 196 196 196 230 190 270 170 Overloaded Moves . | . . . . . . . . . . . . . . . . . . . . Propulsion Burnouts . | . . . . . . . . . . . . . . . . . . . . Robots Hopped . | . . . . . . . . . . . . . . . . . . . . Potential Cave-ins 16 | . . 2 . . . . . . . . . . . . . . . 1 13 Cave-ins Triggered 1 | . . . . . . . . . . . . . . . . . . . 1 Teleports 2 | . . . . . . . . . . . . . . . . . . . 2 Exploration Rate (%) 50 | 4 29 97 39 88 9 51 87 78 70 22 59 64 92 50 11 26 14 97 30 Regions Visited 19 Branch Regions 14 Pre-discovered Areas 11 | . . 1 1 2 . . 3 1 1 1 . 1 . . . . . . . Known Exits Taken 10 | . . 1 . 1 1 1 . . 1 1 . 1 1 1 1 . . . . Unknown Exits Taken 9 | 1 1 . 1 . . . 1 1 . . 1 . . . . 1 1 1 . Scrap Searched 20 | . . 1 . 4 . 3 4 . 4 . 3 1 . . . . . . . Spaces Dug 145 | . . 41 . 2 8 . . . 3 4 . . . . 38 14 12 13 10 Terrain Destroyed 555 | . . 67 . 6 10 21 6 . 19 69 7 9 24 8 90 42 34 69 74 Melee 3 | . . . . . . . . . . . . . . . . . . 3 . Projectile 251 | . . 67 . 5 10 21 6 . 19 22 7 9 . . . 18 34 31 2 AOE 285 | . . . . . . . . . . 47 . . 24 8 90 24 . 30 62 Terrain Rammed . | . . . . . . . . . . . . . . . . . . . . Walls Destroyed . | . . . . . . . . . . . . . . . . . . . . Machines Disabled . | . . . . . . . . . . . . . . . . . . . . Actions | -11 -10 -10 -8 -8 -6 -6 -6 -6 -5 -5 -5 -5 -5 -4 -4 -4 -3 -3 -3 --------- Run | Yrd Mat Sub Rec Scr Fac Low Low Dat Pro Fac Upp Upp War Pro Fac Arm Res Qua Frg Total 15511 | 86 523 2542 265 2153 256 577 1778 238 554 750 360 578 1052 259 407 349 403 1749 632 Wait 2080 | 3 386 51 7 158 1 51 943 26 4 12 . 93 150 2 44 57 10 64 18 Move 11799 | 61 111 2126 251 1911 222 480 807 166 502 616 343 463 811 241 294 203 299 1368 524 Hop . | . . . . . . . . . . . . . . . . . . . . Pick Up 236 | 9 10 31 1 28 4 7 7 8 3 16 2 4 16 3 7 6 24 36 14 Fast Attach 100 | 1 . 15 . 1 8 . 3 4 . 5 . . 8 . 3 1 4 28 19 Attach 134 | 6 . 9 . 8 2 3 1 7 3 12 1 1 11 . 1 11 13 33 12 Detach 33 | . . 1 . 1 . . . 2 1 3 . . 9 . . 3 4 8 1 Swap 75 | . 3 12 . 4 4 3 3 1 . 5 1 3 4 2 3 8 8 9 2 Drop 232 | . 5 53 2 25 6 8 8 6 2 13 1 3 23 3 8 3 8 46 9 Fire 737 | 6 6 229 2 17 9 25 6 17 38 66 12 11 20 8 47 53 33 114 18 Melee 67 | . . 11 . . . . . 1 1 . . . . . . . . 41 13 Ram 2 | . . . . . . . . . . . . . . . . . . 2 . Kick 6 | . . . . . . . . . . 2 . . . . . 4 . . . Crush 2 | . 2 . . . . . . . . . . . . . . . . . . Escape Stasis 1 | . . . . . . . . . . . . . . . . . . . 1 Rewire 6 | . . 4 2 . . . . . . . . . . . . . . . . Trap . | . . . . . . . . . . . . . . . . . . . . Miscellaneous 1 | . . . . . . . . . . . . . . . . . . . 1 Route ------- -11/Scrapyard -10/Materials (discovered 2 exits: [*Mat] / *Sub) -10/Subcaves (discovered 2 exits: *Mat / *Rec) -8/Recycling (discovered 2 exits: Fac / *Scr) -8/Scraptown (discovered 2 exits: *Fac x2) -6/Factory (discovered 4 exits: *Low x2 / Ext x2) -6/Lower Caves -6/Lower Caves (discovered 2 exits: *Fac / *Dat) -6/Data Miner -5/Proximity Caves -5/Factory (discovered 5 exits: *Fac x3 / *Upp x2) -5/Upper Caves -5/Upper Caves (discovered 2 exits: Fac / *War) -5/Warlord -4/Proximity Caves -4/Factory -4/Armory -3/Research -3/Quarantine (discovered 3 exits: *Res / [*Sec] / *Frg) -3/Protoforge History --------- Turn | Location | Event 8 | -11/Scrapyard | Discovered new exit (range 13) 117 | -11/Scrapyard | Entered Materials 285 | -10/Materials | Discovered new exit (range 15) 303 | -10/Materials | Build established: Mutant 352 | -10/Materials | Discovered new exit (range 7) 392 | -10/Materials | Prayed at D.C.S.S. Altar Unit 717 | -10/Materials | Derelicts attacked the area 719 | -10/Materials | Entered Subcaves 720 | -10/Subcaves | Approached by a straggling Scientist 727 | -10/Subcaves | Learned 8 Materials zone layouts 879 | -10/Subcaves | Core integrity fell below 50% 915 | -10/Subcaves | Identified exit to Recycling 915 | -10/Subcaves | X0-1V1 revealed exit location to -8/Recycling 954 | -10/Subcaves | Learned Materials stockpile data 959 | -10/Subcaves | X0-1V1 mutated your Weapon slot to Power slot 1006 | -10/Subcaves | Sensors blinded by X0-1V1 1010 | -10/Subcaves | Ranged accuracy permanently improved by X0-1V1 (+5%; -50 max core) 1013 | -10/Subcaves | Core integrity permanently improved by X0-1V1 (+250) 1014 | -10/Subcaves | Energy generation permanently improved by X0-1V1 (+15; -150 max core) 1039 | -10/Subcaves | X0-1V1 sent hostile S-10 Pest (x4) 1059 | -10/Subcaves | X0-1V1 mutated your Propulsion slot to Utility slot 1121 | -10/Subcaves | Visited triangular shrine 1121 | -10/Subcaves | Identified exit to Materials 1121 | -10/Subcaves | X0-1V1 revealed exit location to -8/Materials 1128 | -10/Subcaves | Found Prototype Device 1129 | -10/Subcaves | Identified V3-11A's Pendant 1134 | -10/Subcaves | Befriended Subdweller 1174 | -10/Subcaves | X0-1V1 activates XOMVISION 1180 | -10/Subcaves | X0-1V1 revealed exit location to -8/Materials 1189 | -10/Subcaves | Befriended Subdweller 1251 | -10/Subcaves | Visited 4L-MR0's lab 1259 | -10/Subcaves | Found Prototype Device 1265 | -10/Subcaves | Found Powered Cannon 1340 | -10/Subcaves | X0-1V1 mutated your Utility slot to Weapon slot 1363 | -10/Subcaves | X0-1V1 tapped a No Entrance sign 1369 | -10/Subcaves | X0-1V1 sent hostile G-34 Mercenary (x3) 1381 | -10/Subcaves | X0-1V1 sent you into danger 1425 | -10/Subcaves | X0-1V1 sent allied G-34 Mercenary (x2) 1432 | -10/Subcaves | Core integrity restored by X0-1V1 (+57) 1434 | -10/Subcaves | X0-1V1 mutated your Weapon slot to Propulsion slot 1484 | -10/Subcaves | Befriended Subdweller 1493 | -10/Subcaves | X0-1V1 rewrote G-34 Mercenary IFF filter 1503 | -10/Subcaves | X0-1V1 mutated your Propulsion slot to Weapon slot 1508 | -10/Subcaves | X0-1V1 activates XOMVISION 1697 | -10/Subcaves | System corruption reached 10% 1890 | -10/Subcaves | X0-1V1 activates XOMVISION 1905 | -10/Subcaves | X0-1V1 rewrote G-34 Mercenary IFF filter 1930 | -10/Subcaves | Shifting Twisted Machinery released Sub. Laser 1937 | -10/Subcaves | Shifting Twisted Machinery released Sub. Shrapnel Launcher 2058 | -10/Subcaves | X0-1V1 opened Sealed Heavy Doors 2081 | -10/Subcaves | Found SUBCON Basin 2088 | -10/Subcaves | X0-1V1 sent hostile G-34 Mercenary (x5) 2197 | -10/Subcaves | Shifting Twisted Machinery released Sub. Beam Cannon 2237 | -10/Subcaves | Core integrity restored by X0-1V1 (+54) 2248 | -10/Subcaves | Shifting Twisted Machinery released Sub. Machine Gun 2272 | -10/Subcaves | Shifting Twisted Machinery released Sub. Beam Cannon 2277 | -10/Subcaves | Approached by friendly Subdweller 2319 | -10/Subcaves | Befriended Subdweller 2351 | -10/Subcaves | Shifting Twisted Machinery released Sub. Machine Gun 2514 | -10/Subcaves | X0-1V1 sent hostile S-10 Pest (x3) 2947 | -10/Subcaves | Learned location of Zion (-7) 2947 | -10/Subcaves | Met a Zionite searching for "candidates" 3094 | -10/Subcaves | X0-1V1 activates XOMVISION 3114 | -10/Subcaves | X0-1V1 rewrote 8L-1U5(R) IFF filter 3147 | -10/Subcaves | X0-1V1 mutated your Weapon slot to Utility slot 3336 | -10/Subcaves | Core integrity restored by X0-1V1 (+60) 3454 | -10/Subcaves | X0-1V1 activates XOMVISION 3478 | -10/Subcaves | X0-1V1 sent hostile S-10 Pest (x4) 3497 | -10/Subcaves | X0-1V1 sent allied S-10 Pest (x4) 3508 | -10/Subcaves | X0-1V1 mutated your Utility slot to Propulsion slot 3561 | -10/Subcaves | X0-1V1 rewrote S-10 Pest IFF filter 3723 | -10/Subcaves | X0-1V1 activates XOMVISION 3780 | -10/Subcaves | X0-1V1 rewrote S-10 Pest IFF filter 3793 | -10/Subcaves | X0-1V1 mutated your Propulsion slot to Weapon slot 3928 | -10/Subcaves | X0-1V1 rewrote S-10 Pest IFF filter 3949 | -10/Subcaves | X0-1V1 sent you into danger 3954 | -10/Subcaves | Befriended Subdweller 3954 | -10/Subcaves | Core integrity restored by X0-1V1 (+54) 3974 | -10/Subcaves | Befriended Subdweller 3978 | -10/Subcaves | X0-1V1 mutated your Weapon slot to Propulsion slot 3999 | -10/Subcaves | X0-1V1 rewrote V8-40P(R) IFF filter 4024 | -10/Subcaves | Befriended Subdweller 4024 | -10/Subcaves | Ambushed by Subdweller buried in earth 4029 | -10/Subcaves | Befriended Subdweller 4160 | -10/Subcaves | X0-1V1 mutated your Propulsion slot to Utility slot 4192 | -10/Subcaves | X0-1V1 rewrote U7-JKX(R) IFF filter 4212 | -10/Subcaves | X0-1V1 activates XOMVISION 4219 | -10/Subcaves | X0-1V1 sent hostile S-10 Pest (x5) 4405 | -10/Subcaves | System corruption reached 30% 4652 | -10/Subcaves | Build established: Scavenger-Mutant 4691 | -10/Subcaves | Entered Recycling 4972 | -8/Recycling | Identified exit to Factory 4972 | -8/Recycling | X0-1V1 revealed exit location to -6/Factory 4979 | -8/Recycling | Build established: Mutant 5035 | -8/Recycling | Scanned before Scraplab entrance 5058 | -8/Recycling | Entered Scraplab 5070 | -8/Recycling | Discovered new exit (range 3) 5078 | -8/Recycling | Core integrity restored by X0-1V1 (+54) 5083 | -8/Recycling | Entered Scraptown 5083 | -8/Scraptown | System corruption cleaned by C-Scrubber 5179 | -8/Scraptown | Delivered V3-11A's Pendant to T0-NE2 in exchange for information 5194 | -8/Scraptown | Learned location of Extension (-6) 5451 | -8/Scraptown | Discovered exit to Factory (range 11) 5899 | -8/Scraptown | Visited Comm Corps 5922 | -8/Scraptown | Visited Red Mages 5937 | -8/Scraptown | Visited SPCMW 5989 | -8/Scraptown | Visited CPS Storage 6009 | -8/Scraptown | Visited Cyclists 6032 | -8/Scraptown | Visited UFD Registry 6032 | -8/Scraptown | Registered with UFD as "Megadisc" 6069 | -8/Scraptown | Visited LU-1G1's Boring Crew 6092 | -8/Scraptown | Visited A0-MCA Data Center 6115 | -8/Scraptown | Visited Scrapoid Pod Storage 6135 | -8/Scraptown | Visited Abandonware Association 6146 | -8/Scraptown | Learned abandonware demo "OVRCLOCK.EXE" 6153 | -8/Scraptown | Learned abandonware demo "HACKBUD.EXE" 6153 | -8/Scraptown | Learned abandonware demo "REVENGE.EXE" 6187 | -8/Scraptown | Visited Research Penetration Think Tank 6222 | -8/Scraptown | Visited Scrapoid Research Area 6237 | -8/Scraptown | Visited Science Guys 6291 | -8/Scraptown | Visited Scrap Suit Storage 6321 | -8/Scraptown | Visited Junk Repository 6372 | -8/Scraptown | Visited Junk Repository 6836 | -8/Scraptown | Scanned Subdweller tech in exchange for log data 6839 | -8/Scraptown | Learned location of Testing (-2) 6841 | -8/Scraptown | Learned Factory stockpile data 6846 | -8/Scraptown | Learned Research machine intel 6847 | -8/Scraptown | Learned 12 Research zone layouts 7531 | -8/Scraptown | Found Scrapoid Pod 7747 | -8/Scraptown | Given a B rating by A0-MCA 7749 | -8/Scraptown | Found A0-MCA's Component Scanner 8021 | -8/Scraptown | Met Optimus 8021 | -8/Scraptown | Accepted into 0bPrime 8131 | -8/Scraptown | Civil war broke out across Scraptown 8140 | -8/Scraptown | Found Prototype Special Weapon 8164 | -8/Scraptown | Found Prototype Processor 8250 | -8/Scraptown | Identified LU-1G1's Laser Shovel 8263 | -8/Scraptown | X0-1V1 mutated your Utility slot to Propulsion slot 8271 | -8/Scraptown | Found Scrapoid Pod 8274 | -8/Scraptown | Identified Expert System 8278 | -8/Scraptown | Found Scrapoid Pod 8284 | -8/Scraptown | Found Scrapoid Pod 8287 | -8/Scraptown | Found Scrapoid Pod 8297 | -8/Scraptown | Lost 5 allies 8365 | -8/Scraptown | Found Master Drone Bay 8423 | -8/Scraptown | Lost 3 allies 8442 | -8/Scraptown | Entered Factory 8442 | -6/Factory | Evolved 8 slots: Propulsion x2, Utility x5, Weapon x1 8501 | -6/Factory | Identified exit to Lower Caves 8501 | -6/Factory | Identified exit to Extension 8557 | -6/Factory | X0-1V1 sent you to a vault 8784 | -6/Factory | Entered Lower Caves 9013 | -6/Lower Caves | X0-1V1 sent you into danger 9014 | -6/Lower Caves | Attracted the attention of an 0b10 checkpoint 9142 | -6/Lower Caves | Scrapoid Pod released 06L07-D (x5) 9546 | -6/Lower Caves | Identified exit to Lower Caves 9546 | -6/Lower Caves | X0-1V1 revealed exit location to -6/Lower Caves 9554 | -6/Lower Caves | X0-1V1 activates XOMVISION 9810 | -6/Lower Caves | Entered another Lower Caves area 9810 | -6/Lower Caves | Accompanied by 5 allies 9890 | -6/Lower Caves | Discovered new exit (range 12) 9895 | -6/Lower Caves | Entered an active Warlord outpost 9903 | -6/Lower Caves | A Commander dispatched an escort 9926 | -6/Lower Caves | Learned Armory security intel 10043 | -6/Lower Caves | Prototype Device suddenly appears! 10069 | -6/Lower Caves | Found Prototype Device 10733 | -6/Lower Caves | Ambushed by research squad 10992 | -6/Lower Caves | Discovered new exit (range 7) 11070 | -6/Lower Caves | Identified Sfc. Transmogrifier 11073 | -6/Lower Caves | X0-1V1 activates XOMVISION 11946 | -6/Lower Caves | System corruption reached 10% 12154 | -6/Lower Caves | Entered Data Miner 12154 | -6/Data Miner | Accompanied by 6 allies 12154 | -6/Data Miner | Discovered new exit (range 6) 12155 | -6/Data Miner | Commander's escort returned to base 12155 | -6/Data Miner | Commander's escort returned to base 12172 | -6/Data Miner | Met Data Miner 12196 | -6/Data Miner | Learned location of Section 7 (-3) 12196 | -6/Data Miner | Acquired the access code to Warlord's prototype stash 12213 | -6/Data Miner | Received God Mode back door access code from Data Miner 12233 | -6/Data Miner | Found Scimitar of Distortion 12243 | -6/Data Miner | Data Conduit disabled 12261 | -6/Data Miner | Attached Powered Cannon, gained temporary slot: Power 12279 | -6/Data Miner | Lost 3 allies 12281 | -6/Data Miner | Found Scrap Suit 12439 | -6/Data Miner | Entered Proximity Caves 12439 | -5/Proximity Caves | Accompanied by 1 ally 12444 | -5/Proximity Caves | Learned Factory emergency access door positions 12454 | -5/Proximity Caves | Identified exit to Factory 12454 | -5/Proximity Caves | X0-1V1 revealed exit location to -5/Factory 12489 | -5/Proximity Caves | Core integrity restored by X0-1V1 (+144) 12611 | -5/Proximity Caves | Build established: Scavenger-Mutant 12828 | -5/Proximity Caves | Learned location of Armory (-4) 13018 | -5/Proximity Caves | Spotted B-75 Beast 13032 | -5/Proximity Caves | Destroyed B-75 Beast 13125 | -5/Proximity Caves | Scrapoid Pod released 05P12-D (x5) 13419 | -5/Proximity Caves | Entered Factory 13419 | -5/Factory | Accompanied by 5 allies 13419 | -5/Factory | Evolved 2 slots: Propulsion x1, Utility x1 13420 | -5/Factory | Identified exit to Upper Caves 13523 | -5/Factory | X0-1V1 upgraded hostiles (x2) 13595 | -5/Factory | X0-1V1 activates XOMVISION 14003 | -5/Factory | Loaded intel: 8 recycling unit locations 14142 | -5/Factory | Destroyed 7 combat bots 14163 | -5/Factory | Learned location of Protoforge (-3) 14171 | -5/Factory | X0-1V1 sent you to a vault 14197 | -5/Factory | Identified exit to Factory 14197 | -5/Factory | X0-1V1 revealed exit location to -4/Factory 14238 | -5/Factory | Discovered exit to Factory (range 14) 14270 | -5/Factory | Cargo convoy interrupted 14319 | -5/Factory | First assault squad dispatched 14429 | -5/Factory | Discovered exit to Factory (range 16) 14467 | -5/Factory | Entered Upper Caves 14546 | -5/Upper Caves | Build established: Mutant 14650 | -5/Upper Caves | Learned Factory emergency access door positions 14752 | -5/Upper Caves | X0-1V1 activates XOMVISION 14772 | -5/Upper Caves | Discovered new exit (range 12) 14940 | -5/Upper Caves | Entered another Upper Caves area 15007 | -5/Upper Caves | Found Exp. Terrain Scanner 15016 | -5/Upper Caves | Learned location of Warlord (-5) 15022 | -5/Upper Caves | X0-1V1 revealed exit location to -4/Factory 15085 | -5/Upper Caves | Learned Factory trap positions 15244 | -5/Upper Caves | Identified exit to Warlord 15244 | -5/Upper Caves | X0-1V1 revealed exit location to -5/Warlord 15656 | -5/Upper Caves | Entered Warlord 15698 | -5/Warlord | System corruption cleaned by Quarantine Array 15741 | -5/Warlord | Received a Watcher feed algorithm from an ecstatic Tinkerer 15789 | -5/Warlord | Opened Warlord's prototype stash 15813 | -5/Warlord | Found Prototype Reactor 15814 | -5/Warlord | Identified Vortex Chain Reactor 15823 | -5/Warlord | Found Prototype Device 15824 | -5/Warlord | Identified Exp. Cloaking Device 15835 | -5/Warlord | Found Ghost Barrier 15842 | -5/Warlord | Found Prototype Processor 15842 | -5/Warlord | Identified Spectral Analyzer 15846 | -5/Warlord | Found Prototype Device 15846 | -5/Warlord | Identified Exp. Focal Shield 16128 | -5/Warlord | Learned Factory repair station intel 16128 | -5/Warlord | Learned Armory recycling unit intel 16129 | -5/Warlord | Learned 4 Armory zone layouts 16131 | -5/Warlord | Learned Armory emergency access door positions 16265 | -5/Warlord | Visited the Vortex Lab 16267 | -5/Warlord | Warlord's base attacked by MAIN.C 16274 | -5/Warlord | Found Prototype Energy Cannon 16274 | -5/Warlord | Identified Vortex Driver 16281 | -5/Warlord | Found Vortex Driver 16332 | -5/Warlord | Rebuked by Warlord 16446 | -5/Warlord | Identified exit to Proximity Caves 16446 | -5/Warlord | X0-1V1 revealed exit location to -4/Proximity Caves 16541 | -5/Warlord | Identified Amulet of Y3-NDR 16617 | -5/Warlord | Warlord forces counterattacked 16637 | -5/Warlord | Spotted Executioner 16669 | -5/Warlord | Spotted Executioner 16676 | -5/Warlord | Spotted Executioner 16688 | -5/Warlord | Destroyed Executioner 16719 | -5/Warlord | Lost 11 allies 16730 | -5/Warlord | Spotted Striker 16731 | -5/Warlord | Spotted Striker 16784 | -5/Warlord | Lost 4 allies 16837 | -5/Warlord | Lost 5 allies 16843 | -5/Warlord | X0-1V1 activates XOMVISION 16859 | -5/Warlord | Entered Proximity Caves 17130 | -4/Proximity Caves | Learned Research security intel 17274 | -4/Proximity Caves | Discovered exit to Factory (range 12) 17360 | -4/Proximity Caves | Entered Factory 17360 | -4/Factory | Evolved 2 slots: Power x1, Propulsion x1 17361 | -4/Factory | Identified exit to Armory 17362 | -4/Factory | Loaded intel: 86 trap records 17364 | -4/Factory | Loaded intel: 6 repair station locations 17428 | -4/Factory | X0-1V1 mutated your Utility slot to Propulsion slot 17596 | -4/Factory | X0-1V1 announced a LAN party 17823 | -4/Factory | X0-1V1 enhanced Transport squad support 17832 | -4/Factory | X0-1V1 upgraded hostiles (x1) 17897 | -4/Factory | Entered Armory 17901 | -4/Armory | Loaded intel: 2 recycling unit locations 17939 | -4/Armory | X0-1V1 announced a LAN party 17979 | -4/Armory | X0-1V1 alerted Armor Guard 18015 | -4/Armory | X0-1V1 vaporized surrounding terrain (radius 23) 18144 | -4/Armory | Spotted B-86 Titan 18278 | -4/Armory | Spotted Armor Guard 18278 | -4/Armory | Spotted Armor Guard 18281 | -4/Armory | Lost 3 parts (2n1u) 18292 | -4/Armory | Spotted Armor Guard 18299 | -4/Armory | Spotted Armor Guard 18307 | -4/Armory | System corruption reached 10% 18328 | -4/Armory | Discovered new exit (range 4) 18333 | -4/Armory | Entered Research 18333 | -3/Research | Evolved 2 slots: Utility x2 18336 | -3/Research | Loaded intel: 113 machine locations 18345 | -3/Research | Joined by bewildered Wizard 18347 | -3/Research | Joined by bewildered Wizard 18352 | -3/Research | Joined by bewildered Wizard 18353 | -3/Research | Joined by bewildered Wizard 18357 | -3/Research | Loaded intel: 5 recycling unit locations 18361 | -3/Research | Lost 13 parts (3p4n5u1w) 18409 | -3/Research | X0-1V1 activates XOMVISION 18410 | -3/Research | X0-1V1 released a cloud of subatomizers 18726 | -3/Research | Build established: Hacker-Mutant 18752 | -3/Research | Spotted B-86 Titan 18752 | -3/Research | X0-1V1 whisked you away to safety 18771 | -3/Research | Found Adv. Powered Armor 18774 | -3/Research | Found Adv. Powered Armor 18780 | -3/Research | Found Adv. Powered Armor 18863 | -3/Research | Joined by bewildered Wizard 18864 | -3/Research | Joined by bewildered Wizard 18938 | -3/Research | Spotted B-90 Cyclops 18944 | -3/Research | Discovered new exit (range 5) 18953 | -3/Research | Entered Quarantine 18953 | -3/Quarantine | Accompanied by 1 ally 18969 | -3/Quarantine | Found Alien Slashing Weapon 19199 | -3/Quarantine | Found Alien Energy Cannon 19386 | -3/Quarantine | Found Alien Artifact 19415 | -3/Quarantine | System corruption reached 10% 19433 | -3/Quarantine | Garrison activated, responded to threat 19476 | -3/Quarantine | Cryocooling Duct disabled 19488 | -3/Quarantine | X0-1V1 turns hostiles against one another 19491 | -3/Quarantine | Ambient heat levels rising (+20) 19491 | -3/Quarantine | Non-combat units ordered to evacuate 19504 | -3/Quarantine | Scanned by Researcher 19545 | -3/Quarantine | Master Drone dominated S-43 Plague 19554 | -3/Quarantine | Master Drone dominated Y-72 Warden 19556 | -3/Quarantine | Master Drone dominated G-67 Veteran 19566 | -3/Quarantine | Master Drone dominated S-43 Plague 19574 | -3/Quarantine | Master Drone dominated Veteran 8a 19580 | -3/Quarantine | Master Drone dominated P-80 Master 19580 | -3/Quarantine | Spotted Alpha 7 19601 | -3/Quarantine | Master Drone dominated H-77 Assassin 19635 | -3/Quarantine | Lost 13 parts (3p3n5u2w) 19635 | -3/Quarantine | Master Drone dominated H-77 Assassin 19639 | -3/Quarantine | Lost 6 allies 19661 | -3/Quarantine | Destroyed Alpha 7 19671 | -3/Quarantine | Identified exit to Research 19671 | -3/Quarantine | X0-1V1 revealed exit location to -2/Research 19736 | -3/Quarantine | Garrison activated, responded to threat 19740 | -3/Quarantine | Master Drone dominated Y-72 Warden 19747 | -3/Quarantine | Identified Sigix Broadsword 19789 | -3/Quarantine | System corruption reached 30% 19798 | -3/Quarantine | Found Corrupted Exp. ECM Suite 20020 | -3/Quarantine | Build established: Scavenger-Mutant 20108 | -3/Quarantine | Found Alien Impact Weapon 20130 | -3/Quarantine | X0-1V1 foreshadows a heat wave 20211 | -3/Quarantine | X0-1V1 upgraded hostiles (x1) 20243 | -3/Quarantine | Found Alien Artifact 20261 | -3/Quarantine | Found Tactical Quantum Warhead 20264 | -3/Quarantine | Found Tactical Quantum Warhead 20283 | -3/Quarantine | Core integrity restored by X0-1V1 (+216) 20291 | -3/Quarantine | Found Alien Reactor 20335 | -3/Quarantine | Ambient heat levels rising (+10) 20377 | -3/Quarantine | Identified Core Stripper 20405 | -3/Quarantine | Lost 3 parts (1n1u1w) 20426 | -3/Quarantine | Found Com. Tesla Bomb Launcher 20447 | -3/Quarantine | Ambient heat levels rising (+10) 20477 | -3/Quarantine | Identified Matter Drive 20481 | -3/Quarantine | Lost 4 parts (2n2u) 20511 | -3/Quarantine | Garrison activated, responded to threat 20543 | -3/Quarantine | Lost 3 parts (1p1n1u) 20561 | -3/Quarantine | Ambient heat levels falling (-10) 20578 | -3/Quarantine | Enh. Hardcell Cannon reconfigured into Item Mimic 20632 | -3/Quarantine | Ambient heat levels falling (-10) 20644 | -3/Quarantine | X0-1V1 made a cryptic comment about sterilization and BL-4Z3 20654 | -3/Quarantine | Found Alien Artifact 20654 | -3/Quarantine | Identified Core Reset Matrix 20654 | -3/Quarantine | Identified Core Cannon 20654 | -3/Quarantine | Identified Terrabomb 20654 | -3/Quarantine | Identified Subatomic Replicator 20654 | -3/Quarantine | Used Core Reset Matrix 20658 | -3/Quarantine | Detected hypermatrix surge 20658 | -3/Quarantine | Sensed 10 artifacts in vicinity 20664 | -3/Quarantine | Discovered exit to Research (range 16) 20686 | -3/Quarantine | Sterilization system engaged 20686 | -3/Quarantine | Non-combat units ordered to evacuate 20730 | -3/Quarantine | Found Dimensional Node Initializer 20734 | -3/Quarantine | Found Transdimensional Reconstructor 20736 | -3/Quarantine | Found Transdimensional Reconstructor 20738 | -3/Quarantine | Found Hpw. Transdimensional Reconstructor 20786 | -3/Quarantine | Combat units ordered to evacuate 20818 | -3/Quarantine | Tech Extrapolator generated special schematic: Energy Deflector 20825 | -3/Quarantine | Spotted Fortress 20863 | -3/Quarantine | Discovered new exit (range 6) 20863 | -3/Quarantine | Discovered new exit (range 6) 20866 | -3/Quarantine | Entered Protoforge 20867 | -3/Protoforge | Sensed 2 artifacts in vicinity 20873 | -3/Protoforge | Lost 4 parts (3n1u) 20876 | -3/Protoforge | Spotted Hotshot 20876 | -3/Protoforge | Spotted Hotshot 20883 | -3/Protoforge | Spotted Hotshot 20885 | -3/Protoforge | X0-1V1 sent you to a vault 20894 | -3/Protoforge | Used Subatomic Replicator to create Supercharged TR 20905 | -3/Protoforge | Found YOLO Cannon 20928 | -3/Protoforge | Spotted AP7-3 20931 | -3/Protoforge | Spotted AP7-3 20931 | -3/Protoforge | Spotted Overlord 20932 | -3/Protoforge | Superfortress began startup sequence 20941 | -3/Protoforge | Used Terrabomb 20962 | -3/Protoforge | Spotted EXE-6 20962 | -3/Protoforge | Spotted EXE-6 20974 | -3/Protoforge | Spotted SKR-2 20975 | -3/Protoforge | Spotted SKR-2 20975 | -3/Protoforge | Spotted SKR-2 20978 | -3/Protoforge | Core integrity fell below 50% 20985 | -3/Protoforge | UFD initiated attack on Protoforge (Readiness: Minimal) 20985 | -3/Protoforge | Loaded intel: 3 recycling unit locations 21000 | -3/Protoforge | Lost 9 parts (3n4u2w) 21006 | -3/Protoforge | Found Exp. Armor Integrity Analyzer 21008 | -3/Protoforge | Found Exp. Kinecellerator 21010 | -3/Protoforge | Found Exp. Core Analyzer 21021 | -3/Protoforge | Optimus greeted in Protoforge 21027 | -3/Protoforge | Initialized slip node 21045 | -3/Protoforge | Lost 7 allies 21047 | -3/Protoforge | X0-1V1 activates XOMVISION 21094 | -3/Protoforge | Found Exp. Weapon Cycler 21179 | -3/Protoforge | Found Cep. Chromion Battery 21182 | -3/Protoforge | Found Cep. Chromion Battery 21190 | -3/Protoforge | Spotted Hotshot 21194 | -3/Protoforge | Spotted Hotshot 21197 | -3/Protoforge | Found Cep. Core Shell 21201 | -3/Protoforge | Spotted Hotshot 21205 | -3/Protoforge | Destroyed Hotshot 21221 | -3/Protoforge | Destroyed Hotshot 21224 | -3/Protoforge | Destroyed Hotshot 21251 | -3/Protoforge | Warped through subspace to slip node 21256 | -3/Protoforge | Spotted Immortal 21265 | -3/Protoforge | P-80 Master assimilated allied Lugger 985 21265 | -3/Protoforge | Spotted Hotshot 21266 | -3/Protoforge | X0-1V1 downgraded hostiles (x1) 21268 | -3/Protoforge | Spotted Executioner 21269 | -3/Protoforge | Destroyed Hotshot 21271 | -3/Protoforge | Destroyed Executioner 21277 | -3/Protoforge | Spotted Immortal 21278 | -3/Protoforge | Spotted Hotshot 21282 | -3/Protoforge | Spotted Executioner 21285 | -3/Protoforge | Found Exp. Jetlance 21286 | -3/Protoforge | Spotted Immortal 21287 | -3/Protoforge | Found Exp. Melee Analysis Suite 21295 | -3/Protoforge | Found Cep. Antimissile System 21300 | -3/Protoforge | Spotted Executioner 21300 | -3/Protoforge | Spotted Hotshot 21303 | -3/Protoforge | Spotted Immortal 21309 | -3/Protoforge | Spotted Striker 21316 | -3/Protoforge | Optimus destroyed during the operation 21317 | -3/Protoforge | Lost 4 parts (1p2u1w) 21323 | -3/Protoforge | Core integrity fell below 20% 21329 | -3/Protoforge | Spotted Hotshot 21334 | -3/Protoforge | Spotted Striker 21339 | -3/Protoforge | Spotted Decapitator 21346 | -3/Protoforge | X0-1V1 rescued you from certain death 21356 | -3/Protoforge | Spotted Hotshot 21357 | -3/Protoforge | Spotted Hotshot 21357 | -3/Protoforge | Spotted Hotshot 21365 | -3/Protoforge | Lost 34 allies 21375 | -3/Protoforge | Spotted Striker 21375 | -3/Protoforge | Spotted Executioner 21377 | -3/Protoforge | Warped through subspace 21402 | -3/Protoforge | Crushed by falling debris 21405 | -3/Protoforge | Spotted Executioner 21407 | -3/Protoforge | Spotted Executioner 21408 | -3/Protoforge | Spotted Striker 21409 | -3/Protoforge | Destroyed by Y-72 Warden with Quantum Rifle Last Messages --------------- 21406_ C-45 Heavy ARC bursts open, deploying its payload. 21406_ G-67 Veteran unfolds itself. 21406_ S-43 Plague unfolds itself. 21406_ P-80 Master unfolds itself. 21406_ L-61 Swordsman unfolds itself. 21406_ I-47 Archangel unfolds itself. 21407_ P-80 Master resets Y9-EDK(E), system corruption cleaned. 21407_ Exp. Weapon Cycler destroyed. 21407_ UFD Drillbomb activation sequence initiated, repeat to continue process (1/10). 21408_ System corrupted: Matter fused (-10). 21408_ Acquired 10 matter. 21409_ 0bP_NET: Lugger 239 inbound, all units not involved in other operations escort to target. 21409_ Slug penetrates Wall. 21409_ Penetrated by Slug. 21409_ X0-1V1 laughs nastily! Map ----- +----------------------------------------------------+ | ???##?########?########?########?##""""""""""""""" | | ???##?########?########?########?##""""""""""""""" | | ???##????????????????????????????##############"## | | ???##????????????????????????????######## | | ???##???????????????????????????????### | | ???##???????###############???????### | | ???##???????#################????## """""""""" | | ???##???????## " #???## " | | ???##???????## ####??## " "" " | | ???##???????## " " ##???## " """" | | ???########### ##???# " "" " " | | ???########### " ""!##??## " """ | | ???##????????# """ ##??# " " | | ????#????????# ##?## " " "" | | ????#????????####"######"#### " "" | | ?????????????+ ##########""#" " | | ????#????????### + " " " " | | ????#????????### # !" " " " " | | #####????????### / [ # " "" | | #####????????### # # " "" | | ##?##????????### # ! [# " """" | | ########?####### #############;% % ;; " " | | #####?????????# l###;;#;;;;;;;;; ; ;;" % | | ?????????? # E i % % ; " | | #####????? /E Y% g K ^%%%%i ; " | | #####?????????# h %p s@ %& E& g% p ; """" | | ##?##?????????# ###+#######;;;;;; ;;; """" | | ##?##?????????## ##????? # """ " | | ##?##?????????## ##????? # " | | #####?????????## ##????? # " " | | ################ ##?????? # # " | | ?############### ##???????? # " """%" | | ?##??????????### ##??????? # " "" "" | | ?##???########## ##??????? # " "" " % | | ?##???######### ?#??????? ?# " | | ?##???##??????? "" ?########?### " " | | ?##???##??????? "T ?########?### " " | | ?##???##??????? ?? ??????????#### " | | ?##???##???####??? ?########?###### " " | | ###???##???#####???#######?????##?### " " | | ###???##???#####???###??##?????##???### " """ | | ??????##???##?##???#######?????##?????### " """ " | | ??????##???##?##???#######?????##???????# "" | | ??????##???##?##?????????#?????##???????# | | ??????##???#####???#####?#?????##???????# | | ###???##???#####???#####?#?????########## """""" | | ###???##???####?????####?################ """ | | ?##???##???####?????####?########??????## " | | ?##???##???####?????####?#????###??????## | | ?##???##???####?????####?#????###??????## "" | +----------------------------------------------------+ Best States ------------- Heat Dissipation 147 Coolant Potential 80 Energy Generation 86 Energy Capacity 2170 Matter Stores 900 Matter Capacity 1050 Sight Range 27 Terrain Scan Range 30 Terrain Scan Density 210 ECM Strength 3 Jamming Range 14 Cloak Strength 4 Power Amplification 30 Base Temperature (-) 200 Armor Coverage 1600 Resistance: KI 30 Resistance: TH 20 Resistance: EX 50 Resistance: EM 90 Core Shielding 90 Propulsion Shielding 90 Point Defense Rating 480 Weapon Cycling 30 Evasion (%) 70 Melee Accuracy 12 Launcher Accuracy 20 Target Analysis 6 Core Analysis 8 Armor Integrity Analysis 50 Recoil Reduction 7 Matter Filtering 30 Kinecelleration 66 Offensive Hacking 12 Defensive Hacking 20 Item Schematics ----------------- Mak. Kinetic Plating | -3/Quarantine | Extrapolated Energy Deflector | -3/Quarantine | Extrapolated Mak. Coolant Network | -3/Protoforge | Extrapolated Adv. Plasma Rifle | -3/Protoforge | Archive Robot Schematics ------------------ None Fabricated ------------ Nothing Repaired ---------- Nothing Studied --------- None Alien Tech Used ----------------- Sigix Broadsword Core Stripper Matter Drive Core Reset Matrix Subatomic Replicator Terrabomb Dimensional Node Initializer Supercharged TR High-powered Transdimensional Reconstructor Achievements -------------- None Challenges ------------ None Game ------ Seed IonInertialTether Manual? 0 Play Time 02:46:18 Cumulative 973.5 hours Start 2026.07.06 @ 17:47:37 End 2026.07.07 @ 05:08:10 Sessions 9 Manual Loads 0 Difficulty Rogue Special Mode None Game No. 1111 Rogue 1111 Adventurer 0 Explorer 0 Win Type - Total 43 Types 20/1/9/3/2/1/3/2/1/1 Lore% 98 Gallery% 96 Achievement% 93 Wizard Run 0 Options --------- Layout 2 ASCII 0 Keyboard 0 Movement Mouse Keybinds 0 Fullscreen 2 Font 24/X11 Map View 50x44 Zoom Use 0% Tactical HUD 1 Map Filters NONE Filters NONE Steam 1 RUN: cde8aa16-72c0-42ae-8f59-43dcef6ac6b9